[Event "Titled Tuesday Blitz September 28 2021"]
[White "Nurmanova, Alua"]
[Black "Gaehwiler, Gabriel"]
[WhiteFideId "13729390"]
[BlackFideId "1314530"]
[WhiteElo "1869"]
[BlackElo "2320"]
[Result "0-1"]
[Round "10"]
[TimeControl "180+1"]
[Date "2021.09.28"]
[WhiteClock "0:00:05"]
[BlackClock "0:01:37"]

1. e4 {[%clk 0:03:00]}  c5 {[%clk 0:02:59]} 2. Nf3 {[%clk 0:03:00]}  d6 {[%clk 0:02:59]} 3. d4 {[%clk 0:03:01]}  cxd4 {[%clk 0:03:00]} 4. Nxd4 {[%clk 0:03:01]}  Nf6 {[%clk 0:03:01]} 5. Nc3 {[%clk 0:03:02]}  Nc6 {[%clk 0:03:01]} 6. Bg5 {[%clk 0:03:02]}  Bd7 {[%clk 0:03:02]} 7. Qd2 {[%clk 0:02:59]}  Rc8 {[%clk 0:03:01]} 8. f4 {[%clk 0:02:54]}  Qa5 {[%clk 0:03:00]} 9. Nb3 {[%clk 0:02:51]}  Qc7 {[%clk 0:02:59]} 10. Nd5 {[%clk 0:02:48]}  Nxd5 {[%clk 0:02:57]} 11. exd5 {[%clk 0:02:49]}  Nd8 {[%clk 0:02:56]} 12. Bd3 {[%clk 0:02:42]}  h6 {[%clk 0:02:53]} 13. Bh4 {[%clk 0:02:40]}  e5 {[%clk 0:02:41]} 14. fxe5 {[%clk 0:02:30]}  dxe5 {[%clk 0:02:40]} 15. O-O {[%clk 0:02:29]}  Bd6 {[%clk 0:02:39]} 16. Qf2 {[%clk 0:02:07]}  O-O {[%clk 0:02:27]} 17. Qxa7 {[%clk 0:02:01]}  f5 {[%clk 0:02:27]} 18. c3 {[%clk 0:01:35]}  e4 {[%clk 0:02:26]} 19. Be2 {[%clk 0:01:34]}  Bxh2+ {[%clk 0:02:25]} 20. Kh1 {[%clk 0:01:35]}  Bd6 {[%clk 0:02:26]} 21. Qe3 {[%clk 0:01:27]}  Nf7 {[%clk 0:02:25]} 22. c4 {[%clk 0:01:23]}  b6 {[%clk 0:02:25]} 23. g4 {[%clk 0:01:03]}  f4 {[%clk 0:02:15]} 24. Qxe4 {[%clk 0:01:01]}  Rce8 {[%clk 0:02:15]} 25. Qc2 {[%clk 0:00:58]}  Ne5 {[%clk 0:02:15]} 26. Nd4 {[%clk 0:00:53]}  Bxg4 {[%clk 0:02:10]} 27. Bxg4 {[%clk 0:00:52]}  Nxg4 {[%clk 0:02:11]} 28. Ne6 {[%clk 0:00:51]}  Qf7 {[%clk 0:02:04]} 29. Nxf8 {[%clk 0:00:48]}  Qh5 {[%clk 0:01:56]} 30. Ng6 {[%clk 0:00:27]}  Ne3 {[%clk 0:01:55]} 31. Qd3 {[%clk 0:00:23]}  Qg4 {[%clk 0:01:52]} 32. Rf2 {[%clk 0:00:19]}  f3 {[%clk 0:01:42]} 33. Re1 {[%clk 0:00:05]}  Re4 {[%clk 0:01:37]} 34. Rxe3 {[%clk 0:00:05]}  Qh3+ {[%clk 0:01:37]} 35. Kg1 {[%clk 0:00:05]}  Rg4+ {[%clk 0:01:37]} 0-1


[Site "https://www.chess.com"]

[Event "Titled Tuesday Blitz September 28 2021"]
[White "Odegov, Artem"]
[Black "Krysa, Leandro"]
[WhiteFideId "34183644"]
[BlackFideId "116807"]
[WhiteElo "2257"]
[BlackElo "2490"]
[Result "0-1"]
[Round "10"]
[TimeControl "180+1"]
[Date "2021.09.28"]
[WhiteClock "0:01:02"]
[BlackClock "0:01:13"]

1. d4 {[%clk 0:03:00]}  Nf6 {[%clk 0:02:58]} 2. c4 {[%clk 0:03:00]}  e6 {[%clk 0:02:57]} 3. Nf3 {[%clk 0:03:00]}  b6 {[%clk 0:02:56]} 4. g3 {[%clk 0:03:00]}  Bb7 {[%clk 0:02:55]} 5. Bg2 {[%clk 0:03:00]}  Bb4+ {[%clk 0:02:56]} 6. Bd2 {[%clk 0:03:00]}  c5 {[%clk 0:02:56]} 7. Bxb4 {[%clk 0:02:57]}  cxb4 {[%clk 0:02:57]} 8. O-O {[%clk 0:02:57]}  O-O {[%clk 0:02:57]} 9. Nbd2 {[%clk 0:02:55]}  d6 {[%clk 0:02:56]} 10. Qc2 {[%clk 0:02:51]}  Nbd7 {[%clk 0:02:50]} 11. e4 {[%clk 0:02:51]}  e5 {[%clk 0:02:50]} 12. d5 {[%clk 0:02:50]}  a5 {[%clk 0:02:47]} 13. Rae1 {[%clk 0:02:47]}  Nc5 {[%clk 0:02:45]} 14. Qb1 {[%clk 0:02:47]}  Bc8 {[%clk 0:02:40]} 15. Nh4 {[%clk 0:02:47]}  Ne8 {[%clk 0:02:30]} 16. f4 {[%clk 0:02:36]}  exf4 {[%clk 0:02:29]} 17. Rxf4 {[%clk 0:02:36]}  g5 {[%clk 0:02:24]} 18. Ref1 {[%clk 0:02:00]}  gxf4 {[%clk 0:02:21]} 19. Rxf4 {[%clk 0:02:01]}  f6 {[%clk 0:02:20]} 20. Ndf3 {[%clk 0:01:59]}  Ra7 {[%clk 0:02:16]} 21. Nd4 {[%clk 0:01:59]}  Rg7 {[%clk 0:02:06]} 22. Ndf5 {[%clk 0:01:59]}  Bxf5 {[%clk 0:02:06]} 23. Nxf5 {[%clk 0:02:00]}  Kh8 {[%clk 0:01:55]} 24. b3 {[%clk 0:01:52]}  Rg5 {[%clk 0:01:54]} 25. Qa1 {[%clk 0:01:51]}  Rxf5 {[%clk 0:01:51]} 26. Rxf5 {[%clk 0:01:52]}  Ng7 {[%clk 0:01:49]} 27. Rf4 {[%clk 0:01:51]}  Nd7 {[%clk 0:01:48]} 28. Qf1 {[%clk 0:01:46]}  Ne5 {[%clk 0:01:48]} 29. Bh3 {[%clk 0:01:46]}  Ne8 {[%clk 0:01:44]} 30. Bf5 {[%clk 0:01:45]}  Qc7 {[%clk 0:01:42]} 31. Rh4 {[%clk 0:01:44]}  Rf7 {[%clk 0:01:42]} 32. Be6 {[%clk 0:01:44]}  Rg7 {[%clk 0:01:35]} 33. Kh1 {[%clk 0:01:38]}  Qc5 {[%clk 0:01:20]} 34. Rf4 {[%clk 0:01:34]}  Qe3 {[%clk 0:01:16]} 35. Rxf6 {[%clk 0:01:06]}  Nxf6 {[%clk 0:01:14]} 36. Qxf6 {[%clk 0:01:07]}  Qf3+ {[%clk 0:01:13]} 37. Qxf3 {[%clk 0:01:05]}  Nxf3 {[%clk 0:01:14]} 38. c5 {[%clk 0:01:02]}  bxc5 {[%clk 0:01:13]} 0-1


[Site "https://www.chess.com"]

[Event "Titled Tuesday Blitz September 28 2021"]
[White "Pakleza, Zbigniew"]
[Black "pawel83"]
[WhiteFideId "1119290"]
[WhiteElo "2526"]
[BlackElo "2461"]
[Result "1-0"]
[Round "10"]
[TimeControl "180+1"]
[Date "2021.09.28"]
[WhiteClock "0:00:56"]
[BlackClock "0:00:58"]

1. a3 {[%clk 0:03:00]}  g6 {[%clk 0:02:58]} 2. d4 {[%clk 0:02:58]}  Bg7 {[%clk 0:02:59]} 3. Nf3 {[%clk 0:02:59]}  Nf6 {[%clk 0:02:58]} 4. Bf4 {[%clk 0:02:59]}  O-O {[%clk 0:02:58]} 5. e3 {[%clk 0:02:59]}  b6 {[%clk 0:02:59]} 6. Be2 {[%clk 0:02:58]}  Bb7 {[%clk 0:02:59]} 7. O-O {[%clk 0:02:59]}  c5 {[%clk 0:02:59]} 8. c3 {[%clk 0:02:57]}  cxd4 {[%clk 0:02:56]} 9. cxd4 {[%clk 0:02:57]}  d6 {[%clk 0:02:57]} 10. Nc3 {[%clk 0:02:57]}  Nbd7 {[%clk 0:02:53]} 11. Rc1 {[%clk 0:02:52]}  Nd5 {[%clk 0:02:52]} 12. Nxd5 {[%clk 0:02:51]}  Bxd5 {[%clk 0:02:52]} 13. Ba6 {[%clk 0:02:49]}  Qb8 {[%clk 0:02:48]} 14. Qa4 {[%clk 0:02:46]}  Rd8 {[%clk 0:02:43]} 15. Bg5 {[%clk 0:02:33]}  Kf8 {[%clk 0:02:38]} 16. Rc2 {[%clk 0:02:20]}  Be4 {[%clk 0:02:29]} 17. Rc3 {[%clk 0:02:15]}  Bb7 {[%clk 0:02:29]} 18. Rfc1 {[%clk 0:02:14]}  Bxa6 {[%clk 0:02:20]} 19. Qxa6 {[%clk 0:02:15]}  b5 {[%clk 0:02:20]} 20. Rc7 {[%clk 0:02:04]}  h6 {[%clk 0:02:15]} 21. Bh4 {[%clk 0:02:01]}  g5 {[%clk 0:02:14]} 22. Bg3 {[%clk 0:02:02]}  Qb6 {[%clk 0:02:10]} 23. Qb7 {[%clk 0:01:48]}  Qxb7 {[%clk 0:02:04]} 24. Rxb7 {[%clk 0:01:49]}  Nb6 {[%clk 0:02:04]} 25. h4 {[%clk 0:01:36]}  Bf6 {[%clk 0:01:58]} 26. hxg5 {[%clk 0:01:30]}  hxg5 {[%clk 0:01:58]} 27. e4 {[%clk 0:01:26]}  g4 {[%clk 0:01:55]} 28. e5 {[%clk 0:01:27]}  dxe5 {[%clk 0:01:49]} 29. dxe5 {[%clk 0:01:25]}  Bg7 {[%clk 0:01:44]} 30. Nh4 {[%clk 0:01:14]}  e6 {[%clk 0:01:41]} 31. Rcc7 {[%clk 0:01:09]}  Bh6 {[%clk 0:01:17]} 32. Rxf7+ {[%clk 0:01:09]}  Kg8 {[%clk 0:01:18]} 33. Rh7 {[%clk 0:00:56]}  Rdb8 {[%clk 0:00:58]} 1-0


[Site "https://www.chess.com"]

[Event "Titled Tuesday Blitz September 28 2021"]
[White "Perez Ponsa, Federico"]
[Black "Nakamura, Hikaru"]
[WhiteFideId "117927"]
[BlackFideId "2016192"]
[WhiteElo "2672"]
[BlackElo "2884"]
[Result "1/2-1/2"]
[Round "10"]
[TimeControl "180+1"]
[Date "2021.09.28"]
[WhiteClock "0:02:37"]
[BlackClock "0:02:22"]

1. d4 {[%clk 0:03:00]}  Nf6 {[%clk 0:02:59]} 2. Nf3 {[%clk 0:03:00]}  d5 {[%clk 0:02:58]} 3. Bf4 {[%clk 0:03:00]}  Bf5 {[%clk 0:02:58]} 4. e3 {[%clk 0:02:59]}  e6 {[%clk 0:02:58]} 5. c4 {[%clk 0:02:59]}  Bd6 {[%clk 0:02:57]} 6. Bxd6 {[%clk 0:02:52]}  cxd6 {[%clk 0:02:54]} 7. Nc3 {[%clk 0:02:48]}  dxc4 {[%clk 0:02:54]} 8. Bxc4 {[%clk 0:02:47]}  d5 {[%clk 0:02:54]} 9. Bd3 {[%clk 0:02:48]}  Bxd3 {[%clk 0:02:53]} 10. Qxd3 {[%clk 0:02:48]}  O-O {[%clk 0:02:53]} 11. O-O {[%clk 0:02:49]}  Nbd7 {[%clk 0:02:49]} 12. Rac1 {[%clk 0:02:49]}  a6 {[%clk 0:02:48]} 13. Rc2 {[%clk 0:02:47]}  Nb6 {[%clk 0:02:42]} 14. Rfc1 {[%clk 0:02:46]}  Rc8 {[%clk 0:02:37]} 15. Ne2 {[%clk 0:02:37]}  Rxc2 {[%clk 0:02:22]} 16. Qxc2 {[%clk 0:02:37]}  Ne4 {[%clk 0:02:22]} 1/2-1/2


[Site "https://www.chess.com"]

[Event "Titled Tuesday Blitz September 28 2021"]
[White "Roberson, Peter T"]
[Black "Mirzoev, Azer"]
[WhiteFideId "412384"]
[BlackFideId "13400304"]
[WhiteElo "2283"]
[BlackElo "2525"]
[Result "0-1"]
[Round "10"]
[TimeControl "180+1"]
[Date "2021.09.28"]
[WhiteClock "0:00:38"]
[BlackClock "0:01:15"]

1. e4 {[%clk 0:02:58]}  c6 {[%clk 0:03:00]} 2. Nf3 {[%clk 0:02:50]}  d5 {[%clk 0:03:01]} 3. Nc3 {[%clk 0:02:51]}  a6 {[%clk 0:02:57]} 4. g3 {[%clk 0:02:49]}  Bg4 {[%clk 0:02:51]} 5. Bg2 {[%clk 0:02:46]}  e6 {[%clk 0:02:49]} 6. O-O {[%clk 0:02:46]}  Nf6 {[%clk 0:02:50]} 7. h3 {[%clk 0:02:38]}  Bh5 {[%clk 0:02:49]} 8. e5 {[%clk 0:02:34]}  Nfd7 {[%clk 0:02:48]} 9. g4 {[%clk 0:02:34]}  Bg6 {[%clk 0:02:48]} 10. d3 {[%clk 0:02:33]}  c5 {[%clk 0:02:48]} 11. Bf4 {[%clk 0:02:33]}  Nc6 {[%clk 0:02:48]} 12. Qe2 {[%clk 0:02:28]}  Be7 {[%clk 0:02:47]} 13. Rae1 {[%clk 0:02:28]}  h6 {[%clk 0:02:39]} 14. Bg3 {[%clk 0:02:23]}  Qb6 {[%clk 0:02:37]} 15. Nd1 {[%clk 0:02:22]}  O-O-O {[%clk 0:02:33]} 16. c4 {[%clk 0:02:21]}  dxc4 {[%clk 0:02:23]} 17. dxc4 {[%clk 0:02:21]}  Nd4 {[%clk 0:02:23]} 18. Nxd4 {[%clk 0:02:21]}  cxd4 {[%clk 0:02:24]} 19. f4 {[%clk 0:02:15]}  d3+ {[%clk 0:02:21]} 20. Qf2 {[%clk 0:02:09]}  d2 {[%clk 0:02:06]} 21. Re2 {[%clk 0:01:49]}  Bc5 {[%clk 0:01:59]} 22. Ne3 {[%clk 0:01:49]}  Bd3 {[%clk 0:01:57]} 23. b4 {[%clk 0:01:26]}  Qxb4 {[%clk 0:01:50]} 24. Rxd2 {[%clk 0:01:24]}  Bxf1 {[%clk 0:01:48]} 25. Kxf1 {[%clk 0:01:21]}  Nb6 {[%clk 0:01:46]} 26. Qf3 {[%clk 0:01:07]}  Rxd2 {[%clk 0:01:40]} 27. Qxb7+ {[%clk 0:01:04]}  Kd8 {[%clk 0:01:41]} 28. Bh4+ {[%clk 0:00:48]}  g5 {[%clk 0:01:35]} 29. fxg5 {[%clk 0:00:42]}  Qb1+ {[%clk 0:01:29]} 30. Be1 {[%clk 0:00:41]}  Qd3+ {[%clk 0:01:25]} 31. Kg1 {[%clk 0:00:37]}  Qxe3+ {[%clk 0:01:18]} 32. Kh2 {[%clk 0:00:37]}  Qg1+ {[%clk 0:01:15]} 33. Kg3 {[%clk 0:00:38]}  Qxe1+ {[%clk 0:01:15]} 0-1


[Site "https://www.chess.com"]

[Event "Titled Tuesday Blitz September 28 2021"]
[White "Romanchuk, Viktor"]
[Black "Sadhwani, Raunak"]
[WhiteFideId "14109271"]
[BlackFideId "35093487"]
[WhiteElo "2242"]
[BlackElo "2517"]
[Result "0-1"]
[Round "10"]
[TimeControl "180+1"]
[Date "2021.09.28"]
[WhiteClock "0:00:09"]
[BlackClock "0:02:14"]

1. d4 {[%clk 0:03:00]}  d6 {[%clk 0:03:00]} 2. c4 {[%clk 0:02:59]}  Nf6 {[%clk 0:03:01]} 3. Nf3 {[%clk 0:02:58]}  g6 {[%clk 0:03:02]} 4. g3 {[%clk 0:02:58]}  Bg7 {[%clk 0:03:03]} 5. Bg2 {[%clk 0:02:59]}  O-O {[%clk 0:03:04]} 6. Nc3 {[%clk 0:02:59]}  Nbd7 {[%clk 0:03:05]} 7. O-O {[%clk 0:02:59]}  e5 {[%clk 0:03:05]} 8. e4 {[%clk 0:03:00]}  exd4 {[%clk 0:03:06]} 9. Nxd4 {[%clk 0:02:59]}  Re8 {[%clk 0:03:07]} 10. h3 {[%clk 0:02:58]}  Nc5 {[%clk 0:03:07]} 11. Re1 {[%clk 0:02:58]}  a5 {[%clk 0:03:08]} 12. Qc2 {[%clk 0:02:57]}  Bd7 {[%clk 0:03:09]} 13. Kh2 {[%clk 0:02:54]}  Qc8 {[%clk 0:03:09]} 14. Be3 {[%clk 0:02:53]}  Re5 {[%clk 0:03:08]} 15. g4 {[%clk 0:02:20]}  Bxg4 {[%clk 0:03:01]} 16. hxg4 {[%clk 0:02:19]}  Nxg4+ {[%clk 0:03:02]} 17. Kg1 {[%clk 0:02:19]}  Rh5 {[%clk 0:03:03]} 18. Nd5 {[%clk 0:02:10]}  Qd8 {[%clk 0:03:03]} 19. Nf3 {[%clk 0:02:03]}  Nxe3 {[%clk 0:02:56]} 20. Nxe3 {[%clk 0:01:57]}  Ne6 {[%clk 0:02:54]} 21. e5 {[%clk 0:01:42]}  dxe5 {[%clk 0:02:54]} 22. Qe4 {[%clk 0:01:34]}  c6 {[%clk 0:02:52]} 23. Rad1 {[%clk 0:01:30]}  Qe7 {[%clk 0:02:52]} 24. Kf1 {[%clk 0:01:25]}  f5 {[%clk 0:02:51]} 25. Qd3 {[%clk 0:01:22]}  e4 {[%clk 0:02:51]} 26. Qd7 {[%clk 0:01:21]}  Qxd7 {[%clk 0:02:51]} 27. Rxd7 {[%clk 0:01:20]}  Nc5 {[%clk 0:02:45]} 28. Rxg7+ {[%clk 0:01:04]}  Kxg7 {[%clk 0:02:46]} 29. Ng1 {[%clk 0:01:01]}  Rd8 {[%clk 0:02:45]} 30. Rd1 {[%clk 0:01:01]}  Rxd1+ {[%clk 0:02:45]} 31. Nxd1 {[%clk 0:01:02]}  Kf6 {[%clk 0:02:44]} 32. Ne2 {[%clk 0:01:00]}  Ke5 {[%clk 0:02:43]} 33. f4+ {[%clk 0:00:48]}  exf3 {[%clk 0:02:44]} 34. Bxf3 {[%clk 0:00:49]}  Rh4 {[%clk 0:02:44]} 35. b3 {[%clk 0:00:45]}  Ne4 {[%clk 0:02:43]} 36. Nf2 {[%clk 0:00:42]}  Nd2+ {[%clk 0:02:41]} 37. Kg2 {[%clk 0:00:42]}  Nxf3 {[%clk 0:02:42]} 38. Kxf3 {[%clk 0:00:43]}  g5 {[%clk 0:02:39]} 39. Nd3+ {[%clk 0:00:42]}  Kf6 {[%clk 0:02:39]} 40. Kg3 {[%clk 0:00:39]}  Re4 {[%clk 0:02:39]} 41. Kf3 {[%clk 0:00:38]}  g4+ {[%clk 0:02:39]} 42. Kf2 {[%clk 0:00:38]}  Kg5 {[%clk 0:02:40]} 43. Nc5 {[%clk 0:00:36]}  Re7 {[%clk 0:02:41]} 44. Nd4 {[%clk 0:00:36]}  f4 {[%clk 0:02:41]} 45. Nde6+ {[%clk 0:00:31]}  Kf5 {[%clk 0:02:41]} 46. Nd4+ {[%clk 0:00:31]}  Ke5 {[%clk 0:02:41]} 47. Ne2 {[%clk 0:00:30]}  f3 {[%clk 0:02:40]} 48. Ng3 {[%clk 0:00:31]}  Rf7 {[%clk 0:02:36]} 49. Ke3 {[%clk 0:00:25]}  f2 {[%clk 0:02:24]} 50. Nd3+ {[%clk 0:00:25]}  Ke6 {[%clk 0:02:24]} 51. Nf4+ {[%clk 0:00:22]}  Kd7 {[%clk 0:02:20]} 52. Nf1 {[%clk 0:00:19]}  Kd6 {[%clk 0:02:15]} 53. Nh5 {[%clk 0:00:19]}  Kc5 {[%clk 0:02:13]} 54. Nhg3 {[%clk 0:00:10]}  Kb4 {[%clk 0:02:14]} 55. Ne4 {[%clk 0:00:11]}  Ka3 {[%clk 0:02:14]} 56. Nxf2 {[%clk 0:00:11]}  Kxa2 {[%clk 0:02:14]} 57. Nxg4 {[%clk 0:00:09]}  Rxf1 {[%clk 0:02:14]} 0-1


[Site "https://www.chess.com"]

[Event "Titled Tuesday Blitz September 28 2021"]
[White "Salinas Herrera, Pablo"]
[Black "Korchmar, Vasiliy"]
[WhiteFideId "3407128"]
[BlackFideId "24131750"]
[WhiteElo "2541"]
[BlackElo "2370"]
[Result "1-0"]
[Round "10"]
[TimeControl "180+1"]
[Date "2021.09.28"]
[WhiteClock "0:00:10"]
[BlackClock "0:00:01"]

1. e4 {[%clk 0:03:00]}  c5 {[%clk 0:02:59]} 2. Nf3 {[%clk 0:02:57]}  d6 {[%clk 0:03:00]} 3. Nc3 {[%clk 0:02:57]}  Nc6 {[%clk 0:02:59]} 4. Bb5 {[%clk 0:02:55]}  Bd7 {[%clk 0:02:59]} 5. O-O {[%clk 0:02:55]}  g6 {[%clk 0:02:59]} 6. d4 {[%clk 0:02:55]}  cxd4 {[%clk 0:02:59]} 7. Nxd4 {[%clk 0:02:55]}  Bg7 {[%clk 0:03:00]} 8. Be3 {[%clk 0:02:55]}  Nf6 {[%clk 0:02:59]} 9. Qd2 {[%clk 0:02:46]}  Ng4 {[%clk 0:02:57]} 10. Bxc6 {[%clk 0:02:42]}  bxc6 {[%clk 0:02:58]} 11. Bg5 {[%clk 0:02:41]}  h6 {[%clk 0:02:46]} 12. Bh4 {[%clk 0:02:41]}  Qb6 {[%clk 0:02:29]} 13. Nb3 {[%clk 0:02:40]}  g5 {[%clk 0:02:21]} 14. Bg3 {[%clk 0:02:40]}  O-O {[%clk 0:02:16]} 15. h4 {[%clk 0:02:34]}  Bf6 {[%clk 0:02:14]} 16. hxg5 {[%clk 0:02:31]}  hxg5 {[%clk 0:02:15]} 17. e5 {[%clk 0:02:25]}  Nxe5 {[%clk 0:02:07]} 18. Ne4 {[%clk 0:02:13]}  Bf5 {[%clk 0:01:42]} 19. Nxf6+ {[%clk 0:02:11]}  exf6 {[%clk 0:01:43]} 20. Qxd6 {[%clk 0:02:11]}  Ng4 {[%clk 0:01:25]} 21. Qd2 {[%clk 0:00:49]}  Rad8 {[%clk 0:01:13]} 22. Qc3 {[%clk 0:00:49]}  Kg7 {[%clk 0:01:11]} 23. Rad1 {[%clk 0:00:46]}  Rh8 {[%clk 0:01:02]} 24. Nd4 {[%clk 0:00:44]}  Bg6 {[%clk 0:00:55]} 25. Rfe1 {[%clk 0:00:36]}  Rh5 {[%clk 0:00:49]} 26. f3 {[%clk 0:00:36]}  Rdh8 {[%clk 0:00:44]} 27. fxg4 {[%clk 0:00:34]}  Rh1+ {[%clk 0:00:43]} 28. Kf2 {[%clk 0:00:35]}  Rxe1 {[%clk 0:00:43]} 29. Rxe1 {[%clk 0:00:35]}  Rd8 {[%clk 0:00:39]} 30. Rd1 {[%clk 0:00:28]}  f5 {[%clk 0:00:20]} 31. gxf5 {[%clk 0:00:25]}  Bh5 {[%clk 0:00:20]} 32. Rd3 {[%clk 0:00:22]}  Bg4 {[%clk 0:00:14]} 33. Kf1 {[%clk 0:00:19]}  Kh7 {[%clk 0:00:08]} 34. b4 {[%clk 0:00:18]}  Qa6 {[%clk 0:00:07]} 35. a3 {[%clk 0:00:17]}  Re8 {[%clk 0:00:06]} 36. Bf2 {[%clk 0:00:16]}  c5 {[%clk 0:00:04]} 37. bxc5 {[%clk 0:00:16]}  Qh6 {[%clk 0:00:04]} 38. Kg1 {[%clk 0:00:15]}  Qh5 {[%clk 0:00:01]} 39. Rg3 {[%clk 0:00:13]}  Rb8 {[%clk 0:00:01]} 40. Nb3 {[%clk 0:00:12]}  Rd8 {[%clk 0:00:01]} 41. Rd3 {[%clk 0:00:10]} 1-0


[Site "https://www.chess.com"]

[Event "Titled Tuesday Blitz September 28 2021"]
[White "Shkapenko, Pavel"]
[Black "Le, Tuan Minh"]
[WhiteFideId "4151933"]
[BlackFideId "12401153"]
[WhiteElo "2386"]
[BlackElo "2450"]
[Result "1/2-1/2"]
[Round "10"]
[TimeControl "180+1"]
[Date "2021.09.28"]
[WhiteClock "0:01:32"]
[BlackClock "0:00:44"]

1. e4 {[%clk 0:03:00]}  c5 {[%clk 0:02:59]} 2. c3 {[%clk 0:03:00]}  Nf6 {[%clk 0:02:59]} 3. e5 {[%clk 0:03:01]}  Nd5 {[%clk 0:03:00]} 4. d4 {[%clk 0:03:02]}  cxd4 {[%clk 0:03:01]} 5. cxd4 {[%clk 0:03:02]}  Nc6 {[%clk 0:03:01]} 6. Nc3 {[%clk 0:03:02]}  Nxc3 {[%clk 0:02:57]} 7. bxc3 {[%clk 0:03:03]}  d6 {[%clk 0:02:55]} 8. Nf3 {[%clk 0:03:02]}  dxe5 {[%clk 0:02:50]} 9. d5 {[%clk 0:03:00]}  e4 {[%clk 0:02:49]} 10. Ng5 {[%clk 0:03:00]}  Ne5 {[%clk 0:02:45]} 11. Nxe4 {[%clk 0:03:00]}  g6 {[%clk 0:02:34]} 12. f4 {[%clk 0:02:58]}  Nd7 {[%clk 0:02:31]} 13. Qd4 {[%clk 0:02:55]}  f6 {[%clk 0:02:26]} 14. Bc4 {[%clk 0:02:32]}  Qb6 {[%clk 0:02:16]} 15. Qd3 {[%clk 0:02:25]}  f5 {[%clk 0:01:57]} 16. Ng5 {[%clk 0:02:20]}  Bg7 {[%clk 0:01:01]} 17. Ne6 {[%clk 0:02:17]}  Bf6 {[%clk 0:01:01]} 18. Be3 {[%clk 0:02:16]}  Qa5 {[%clk 0:00:51]} 19. O-O {[%clk 0:02:09]}  Nf8 {[%clk 0:00:49]} 20. Nd4 {[%clk 0:01:38]}  Nd7 {[%clk 0:00:44]} 21. Ne6 {[%clk 0:01:35]}  Nf8 {[%clk 0:00:44]} 22. Nd4 {[%clk 0:01:32]}  Nd7 {[%clk 0:00:44]} 23. Ne6 {[%clk 0:01:32]} 1/2-1/2


[Site "https://www.chess.com"]

[Event "Titled Tuesday Blitz September 28 2021"]
[White "Sinitsina, Anastassia"]
[Black "Kucuksari, Kaan"]
[WhiteFideId "4504640"]
[BlackFideId "6380166"]
[WhiteElo "2161"]
[BlackElo "2301"]
[Result "0-1"]
[Round "10"]
[TimeControl "180+1"]
[Date "2021.09.28"]
[WhiteClock "0:00:01"]
[BlackClock "0:00:27"]

1. Nf3 {[%clk 0:03:00]}  Nf6 {[%clk 0:03:00]} 2. g3 {[%clk 0:03:01]}  b6 {[%clk 0:03:00]} 3. Bg2 {[%clk 0:03:02]}  Bb7 {[%clk 0:03:01]} 4. O-O {[%clk 0:03:02]}  e6 {[%clk 0:03:01]} 5. d3 {[%clk 0:03:03]}  Be7 {[%clk 0:03:02]} 6. Nbd2 {[%clk 0:03:04]}  d5 {[%clk 0:03:03]} 7. Re1 {[%clk 0:03:02]}  c5 {[%clk 0:03:03]} 8. e4 {[%clk 0:03:01]}  Nc6 {[%clk 0:03:04]} 9. e5 {[%clk 0:02:59]}  Nd7 {[%clk 0:03:04]} 10. Nf1 {[%clk 0:03:00]}  b5 {[%clk 0:03:05]} 11. h4 {[%clk 0:02:59]}  Qc7 {[%clk 0:03:04]} 12. Bf4 {[%clk 0:02:59]}  b4 {[%clk 0:03:05]} 13. N1h2 {[%clk 0:02:59]}  a5 {[%clk 0:03:05]} 14. Ng4 {[%clk 0:02:55]}  a4 {[%clk 0:02:58]} 15. a3 {[%clk 0:02:53]}  bxa3 {[%clk 0:02:56]} 16. bxa3 {[%clk 0:02:52]}  d4 {[%clk 0:02:48]} 17. Qd2 {[%clk 0:02:49]}  Na7 {[%clk 0:02:45]} 18. Rab1 {[%clk 0:02:39]}  Bd5 {[%clk 0:02:37]} 19. c4 {[%clk 0:02:21]}  dxc3 {[%clk 0:02:29]} 20. Qxc3 {[%clk 0:02:21]}  Qc6 {[%clk 0:02:29]} 21. Ngh2 {[%clk 0:02:10]}  Nb5 {[%clk 0:02:26]} 22. Qc1 {[%clk 0:02:08]}  c4 {[%clk 0:02:14]} 23. dxc4 {[%clk 0:02:05]}  Qxc4 {[%clk 0:02:14]} 24. Qxc4 {[%clk 0:02:01]}  Bxc4 {[%clk 0:02:15]} 25. Nd4 {[%clk 0:01:59]}  Nxd4 {[%clk 0:02:10]} 26. Bxa8 {[%clk 0:01:57]}  O-O {[%clk 0:02:09]} 27. Be4 {[%clk 0:01:45]}  Bxa3 {[%clk 0:01:53]} 28. Ra1 {[%clk 0:01:28]}  Bb4 {[%clk 0:01:50]} 29. Rxa4 {[%clk 0:01:20]}  Bxe1 {[%clk 0:01:42]} 30. Rxc4 {[%clk 0:01:21]}  Ne2+ {[%clk 0:01:40]} 31. Kf1 {[%clk 0:01:20]}  Nxf4 {[%clk 0:01:41]} 32. Kxe1 {[%clk 0:01:16]}  Nxe5 {[%clk 0:01:39]} 33. Rc7 {[%clk 0:01:05]}  Nfd3+ {[%clk 0:01:37]} 34. Ke2 {[%clk 0:01:04]}  Nb4 {[%clk 0:01:34]} 35. f4 {[%clk 0:01:03]}  Ng6 {[%clk 0:01:30]} 36. h5 {[%clk 0:01:02]}  Nh8 {[%clk 0:01:31]} 37. Ng4 {[%clk 0:00:49]}  f5 {[%clk 0:01:19]} 38. h6 {[%clk 0:00:49]}  Nf7 {[%clk 0:01:07]} 39. hxg7 {[%clk 0:00:16]}  Kxg7 {[%clk 0:01:08]} 40. Bf3 {[%clk 0:00:17]}  fxg4 {[%clk 0:01:02]} 41. Bxg4 {[%clk 0:00:17]}  Kf6 {[%clk 0:00:57]} 42. Rb7 {[%clk 0:00:16]}  Nd5 {[%clk 0:00:57]} 43. Bh5 {[%clk 0:00:14]}  Ne7 {[%clk 0:00:54]} 44. Ra7 {[%clk 0:00:12]}  Nf5 {[%clk 0:00:53]} 45. Kf3 {[%clk 0:00:10]}  h6 {[%clk 0:00:48]} 46. g4 {[%clk 0:00:10]}  Ng7 {[%clk 0:00:46]} 47. Bxf7 {[%clk 0:00:03]}  Rxf7 {[%clk 0:00:47]} 48. Ra6 {[%clk 0:00:03]}  Kg6 {[%clk 0:00:41]} 49. Kg3 {[%clk 0:00:03]}  Rf6 {[%clk 0:00:40]} 50. Rb6 {[%clk 0:00:02]}  e5 {[%clk 0:00:34]} 51. f5+ {[%clk 0:00:01]}  Kg5 {[%clk 0:00:33]} 52. Rb4 {[%clk 0:00:01]}  h5 {[%clk 0:00:32]} 53. Rb7 {[%clk 0:00:01]}  Ne8 {[%clk 0:00:26]} 54. Re7 {[%clk 0:00:01]}  Nd6 {[%clk 0:00:27]} 55. Rxe5 {[%clk 0:00:01]}  hxg4 {[%clk 0:00:27]} 56. Rd5 {[%clk 0:00:01]}  Nxf5+ {[%clk 0:00:27]} 0-1


[Site "https://www.chess.com"]